[Event "Titled Tuesday Blitz February 07 Early 2023"]
[White "Maximov, Dmitry"]
[Black "Mohammed, Zozek Salah Mohammed"]
[WhiteFideId "14105659"]
[BlackFideId "4803361"]
[WhiteElo "2497"]
[BlackElo "2210"]
[Result "0-1"]
[Round "01"]
[TimeControl "180+2"]
[Date "2023.02.07"]
[WhiteClock "0:01:14"]
[BlackClock "0:00:37"]

1. e4 {[%clk 0:03:00]}  e6 {[%clk 0:02:59]} 2. d4 {[%clk 0:02:59]}  d5 {[%clk 0:02:59]} 3. e5 {[%clk 0:03:00]}  c5 {[%clk 0:02:59]} 4. c3 {[%clk 0:02:57]}  Nc6 {[%clk 0:02:59]} 5. Nf3 {[%clk 0:02:58]}  Qb6 {[%clk 0:02:57]} 6. a3 {[%clk 0:02:58]}  Bd7 {[%clk 0:02:55]} 7. b4 {[%clk 0:02:57]}  cxd4 {[%clk 0:02:54]} 8. cxd4 {[%clk 0:02:57]}  Rc8 {[%clk 0:02:53]} 9. Be3 {[%clk 0:02:56]}  a5 {[%clk 0:02:19]} 10. b5 {[%clk 0:02:56]}  Na7 {[%clk 0:02:18]} 11. a4 {[%clk 0:02:56]}  Bb4+ {[%clk 0:02:18]} 12. Nbd2 {[%clk 0:02:56]}  Ne7 {[%clk 0:02:17]} 13. Bd3 {[%clk 0:02:55]}  Rc3 {[%clk 0:02:06]} 14. Qe2 {[%clk 0:02:53]}  Ng6 {[%clk 0:01:55]} 15. h4 {[%clk 0:02:51]}  O-O {[%clk 0:01:49]} 16. h5 {[%clk 0:02:51]}  Ne7 {[%clk 0:01:49]} 17. g4 {[%clk 0:02:40]}  Rfc8 {[%clk 0:01:46]} 18. Kf1 {[%clk 0:02:36]}  Rc1+ {[%clk 0:01:44]} 19. Kg2 {[%clk 0:02:34]}  Rxa1 {[%clk 0:01:43]} 20. Rxa1 {[%clk 0:02:33]}  Qd8 {[%clk 0:01:31]} 21. h6 {[%clk 0:02:27]}  g6 {[%clk 0:01:31]} 22. Bg5 {[%clk 0:02:27]}  Qe8 {[%clk 0:01:27]} 23. Qe3 {[%clk 0:02:25]}  Rc3 {[%clk 0:01:25]} 24. Ne1 {[%clk 0:02:06]}  Nec8 {[%clk 0:01:23]} 25. Qf4 {[%clk 0:02:04]}  Be7 {[%clk 0:01:22]} 26. Ndf3 {[%clk 0:02:03]}  Bxg5 {[%clk 0:01:19]} 27. Nxg5 {[%clk 0:02:03]}  Qe7 {[%clk 0:01:08]} 28. Rc1 {[%clk 0:02:02]}  Rxc1 {[%clk 0:00:56]} 29. Qxc1 {[%clk 0:02:02]}  Nb6 {[%clk 0:00:57]} 30. Nef3 {[%clk 0:01:54]}  Nxa4 {[%clk 0:00:54]} 31. Qc7 {[%clk 0:01:53]}  Nb2 {[%clk 0:00:46]} 32. Bb1 {[%clk 0:01:42]}  Nxb5 {[%clk 0:00:44]} 33. Qxb7 {[%clk 0:01:42]}  a4 {[%clk 0:00:44]} 34. Qa8+ {[%clk 0:01:27]}  Be8 {[%clk 0:00:43]} 35. Qxa4 {[%clk 0:01:26]}  Nxa4 {[%clk 0:00:42]} 36. Nh3 {[%clk 0:01:14]}  Nac3 {[%clk 0:00:38]} 37. Bd3 {[%clk 0:01:14]}  Qa7 {[%clk 0:00:37]} 0-1


[Site "https://www.chess.com"]

[Event "Titled Tuesday Blitz February 07 Early 2023"]
[White "Maung, Maung Kyaw Zaw Hein"]
[Black "Kukhmazov, Arsen"]
[WhiteFideId "13001698"]
[BlackFideId "24108260"]
[WhiteElo "2119"]
[BlackElo "2512"]
[Result "0-1"]
[Round "01"]
[TimeControl "180+2"]
[Date "2023.02.07"]
[WhiteClock "0:00:06"]
[BlackClock "0:00:20"]

1. Nf3 {[%clk 0:02:59]}  Nf6 {[%clk 0:02:55]} 2. c4 {[%clk 0:02:59]}  c6 {[%clk 0:02:54]} 3. Nc3 {[%clk 0:02:59]}  d5 {[%clk 0:02:55]} 4. d4 {[%clk 0:02:59]}  e6 {[%clk 0:02:54]} 5. e3 {[%clk 0:02:59]}  Nbd7 {[%clk 0:02:54]} 6. Qc2 {[%clk 0:02:59]}  b6 {[%clk 0:02:52]} 7. b3 {[%clk 0:02:59]}  Bb7 {[%clk 0:02:52]} 8. Be2 {[%clk 0:02:59]}  Be7 {[%clk 0:02:52]} 9. O-O {[%clk 0:03:00]}  O-O {[%clk 0:02:53]} 10. Rd1 {[%clk 0:03:00]}  Qc7 {[%clk 0:02:51]} 11. Bb2 {[%clk 0:03:00]}  Rac8 {[%clk 0:02:51]} 12. Rac1 {[%clk 0:03:00]}  Qb8 {[%clk 0:02:51]} 13. Qb1 {[%clk 0:03:00]}  Rfd8 {[%clk 0:02:51]} 14. Bd3 {[%clk 0:02:54]}  h6 {[%clk 0:02:49]} 15. h3 {[%clk 0:02:54]}  c5 {[%clk 0:02:46]} 16. cxd5 {[%clk 0:02:53]}  cxd4 {[%clk 0:02:31]} 17. Nxd4 {[%clk 0:02:44]}  Nxd5 {[%clk 0:02:30]} 18. Nxd5 {[%clk 0:02:43]}  Bxd5 {[%clk 0:02:31]} 19. Be4 {[%clk 0:02:34]}  Rxc1 {[%clk 0:01:46]} 20. Rxc1 {[%clk 0:02:28]}  Nc5 {[%clk 0:01:46]} 21. Bxd5 {[%clk 0:02:24]}  Rxd5 {[%clk 0:01:47]} 22. Qc2 {[%clk 0:02:09]}  Bf6 {[%clk 0:01:33]} 23. b4 {[%clk 0:02:04]}  Nd7 {[%clk 0:01:33]} 24. Qc7 {[%clk 0:02:01]}  Qxc7 {[%clk 0:01:30]} 25. Rxc7 {[%clk 0:02:01]}  a5 {[%clk 0:01:31]} 26. bxa5 {[%clk 0:01:48]}  bxa5 {[%clk 0:01:31]} 27. Ra7 {[%clk 0:01:43]}  Nb6 {[%clk 0:01:30]} 28. Bc3 {[%clk 0:01:39]}  Nc4 {[%clk 0:01:29]} 29. a4 {[%clk 0:01:15]}  Nb6 {[%clk 0:01:02]} 30. Ra6 {[%clk 0:01:01]}  Nxa4 {[%clk 0:01:01]} 31. Bxa5 {[%clk 0:00:47]}  Bxd4 {[%clk 0:01:01]} 32. exd4 {[%clk 0:00:47]}  Rxd4 {[%clk 0:01:02]} 33. Bb6 {[%clk 0:00:44]}  Rd1+ {[%clk 0:00:55]} 34. Kh2 {[%clk 0:00:45]}  Nc3 {[%clk 0:00:56]} 35. Kg3 {[%clk 0:00:35]}  g5 {[%clk 0:00:53]} 36. Be3 {[%clk 0:00:32]}  Nd5 {[%clk 0:00:53]} 37. Bc5 {[%clk 0:00:30]}  Kh7 {[%clk 0:00:52]} 38. Ra7 {[%clk 0:00:30]}  Kg6 {[%clk 0:00:52]} 39. Rb7 {[%clk 0:00:30]}  Rd3+ {[%clk 0:00:52]} 40. Kh2 {[%clk 0:00:28]}  Rd2 {[%clk 0:00:51]} 41. Ra7 {[%clk 0:00:27]}  h5 {[%clk 0:00:51]} 42. Rb7 {[%clk 0:00:21]}  h4 {[%clk 0:00:52]} 43. Ra7 {[%clk 0:00:19]}  f6 {[%clk 0:00:50]} 44. Ra6 {[%clk 0:00:19]}  Kf5 {[%clk 0:00:49]} 45. Ra5 {[%clk 0:00:20]}  e5 {[%clk 0:00:48]} 46. Bf8 {[%clk 0:00:15]}  Nf4 {[%clk 0:00:43]} 47. Bc5 {[%clk 0:00:14]}  Nd3 {[%clk 0:00:42]} 48. Kg1 {[%clk 0:00:13]}  Rd1+ {[%clk 0:00:37]} 49. Kh2 {[%clk 0:00:13]}  Nf4 {[%clk 0:00:23]} 50. Be3 {[%clk 0:00:12]}  Nd5 {[%clk 0:00:23]} 51. Bc5 {[%clk 0:00:12]}  e4 {[%clk 0:00:24]} 52. Ra2 {[%clk 0:00:11]}  Ke5 {[%clk 0:00:23]} 53. Ba7 {[%clk 0:00:10]}  Rb1 {[%clk 0:00:21]} 54. Bc5 {[%clk 0:00:10]}  f5 {[%clk 0:00:21]} 55. Ba7 {[%clk 0:00:10]}  f4 {[%clk 0:00:20]} 56. Bc5 {[%clk 0:00:10]}  Rc1 {[%clk 0:00:18]} 57. Ba7 {[%clk 0:00:08]}  Rd1 {[%clk 0:00:18]} 58. Bb8+ {[%clk 0:00:08]}  Kf5 {[%clk 0:00:18]} 59. Ra5 {[%clk 0:00:08]}  e3 {[%clk 0:00:19]} 60. fxe3 {[%clk 0:00:08]}  fxe3 {[%clk 0:00:20]} 61. Ra2 {[%clk 0:00:07]}  Rd2 {[%clk 0:00:20]} 62. Ra5 {[%clk 0:00:06]}  e2 {[%clk 0:00:20]} 0-1


[Site "https://www.chess.com"]

[Event "Titled Tuesday Blitz February 07 Early 2023"]
[White "Kilic, Eray"]
[Black "Bozorov, Makhsum"]
[WhiteFideId "44517173"]
[BlackFideId "14201330"]
[WhiteElo "2414"]
[BlackElo "2145"]
[Result "1-0"]
[Round "01"]
[TimeControl "180+2"]
[Date "2023.02.07"]
[WhiteClock "0:00:46"]
[BlackClock "0:00:10"]

1. e4 {[%clk 0:03:00]}  e5 {[%clk 0:02:54]} 2. Nf3 {[%clk 0:03:00]}  Nc6 {[%clk 0:02:54]} 3. Bb5 {[%clk 0:03:01]}  a6 {[%clk 0:02:55]} 4. Ba4 {[%clk 0:03:01]}  Nf6 {[%clk 0:02:56]} 5. O-O {[%clk 0:03:01]}  b5 {[%clk 0:02:56]} 6. Bb3 {[%clk 0:03:01]}  Bc5 {[%clk 0:02:57]} 7. c3 {[%clk 0:03:02]}  d6 {[%clk 0:02:56]} 8. d4 {[%clk 0:03:02]}  Bb6 {[%clk 0:02:57]} 9. a4 {[%clk 0:03:03]}  Rb8 {[%clk 0:02:55]} 10. a5 {[%clk 0:03:03]}  Ba7 {[%clk 0:02:54]} 11. h3 {[%clk 0:03:03]}  O-O {[%clk 0:02:51]} 12. Re1 {[%clk 0:03:03]}  Bb7 {[%clk 0:02:48]} 13. Bg5 {[%clk 0:03:02]}  h6 {[%clk 0:02:47]} 14. Bh4 {[%clk 0:03:02]}  Re8 {[%clk 0:02:41]} 15. d5 {[%clk 0:02:57]}  Ne7 {[%clk 0:02:39]} 16. Bxf6 {[%clk 0:02:57]}  gxf6 {[%clk 0:02:40]} 17. Nh4 {[%clk 0:02:56]}  Bc8 {[%clk 0:02:31]} 18. Qh5 {[%clk 0:02:55]}  Kg7 {[%clk 0:02:31]} 19. Nd2 {[%clk 0:02:52]}  Ng6 {[%clk 0:02:19]} 20. Nf1 {[%clk 0:02:45]}  Nf4 {[%clk 0:02:14]} 21. Qf3 {[%clk 0:02:45]}  Kh7 {[%clk 0:02:07]} 22. Ng3 {[%clk 0:02:41]}  Rg8 {[%clk 0:02:07]} 23. Kh2 {[%clk 0:02:40]}  Rg5 {[%clk 0:01:47]} 24. Bc2 {[%clk 0:02:30]}  Qg8 {[%clk 0:01:47]} 25. Ne2 {[%clk 0:02:20]}  Nxe2 {[%clk 0:01:33]} 26. Rxe2 {[%clk 0:02:21]}  Qg7 {[%clk 0:01:31]} 27. Rg1 {[%clk 0:02:19]}  Bd7 {[%clk 0:01:30]} 28. g4 {[%clk 0:02:15]}  Rg8 {[%clk 0:01:23]} 29. Rg3 {[%clk 0:02:14]}  Bc8 {[%clk 0:01:13]} 30. Nf5 {[%clk 0:02:07]}  Bxf5 {[%clk 0:01:10]} 31. exf5 {[%clk 0:02:08]}  h5 {[%clk 0:01:07]} 32. Re4 {[%clk 0:02:08]}  Qh6 {[%clk 0:00:54]} 33. Kg2 {[%clk 0:01:32]}  R8g7 {[%clk 0:00:45]} 34. Kf1 {[%clk 0:01:12]}  Kg8 {[%clk 0:00:45]} 35. Ke2 {[%clk 0:01:10]}  hxg4 {[%clk 0:00:42]} 36. Rexg4 {[%clk 0:01:06]}  Rxg4 {[%clk 0:00:42]} 37. Rxg4 {[%clk 0:01:06]}  Rxg4 {[%clk 0:00:41]} 38. Qxg4+ {[%clk 0:01:06]}  Qg5 {[%clk 0:00:38]} 39. Bd3 {[%clk 0:01:06]}  Bc5 {[%clk 0:00:30]} 40. b4 {[%clk 0:01:05]}  Ba7 {[%clk 0:00:27]} 41. c4 {[%clk 0:01:03]}  bxc4 {[%clk 0:00:27]} 42. Bxc4 {[%clk 0:01:03]}  Bd4 {[%clk 0:00:27]} 43. Qxg5+ {[%clk 0:01:00]}  fxg5 {[%clk 0:00:26]} 44. Kd2 {[%clk 0:00:54]}  Bxf2 {[%clk 0:00:20]} 45. Bxa6 {[%clk 0:00:54]}  Kf8 {[%clk 0:00:21]} 46. Be2 {[%clk 0:00:53]}  Ke7 {[%clk 0:00:21]} 47. Bg4 {[%clk 0:00:52]}  Kd8 {[%clk 0:00:21]} 48. b5 {[%clk 0:00:51]}  Kc8 {[%clk 0:00:20]} 49. Kd3 {[%clk 0:00:50]}  Kb8 {[%clk 0:00:21]} 50. f6 {[%clk 0:00:50]}  Bg1 {[%clk 0:00:19]} 51. Be6 {[%clk 0:00:49]}  Bf2 {[%clk 0:00:10]} 52. Bxf7 {[%clk 0:00:49]}  g4 {[%clk 0:00:10]} 53. Be6 {[%clk 0:00:46]}  g3 {[%clk 0:00:10]} 54. f7 {[%clk 0:00:46]} 1-0


[Site "https://www.chess.com"]

[Event "Titled Tuesday Blitz February 07 Early 2023"]
[White "Podetti, Davide"]
[Black "Cherniaiev, Tykhon"]
[WhiteFideId "893617"]
[BlackFideId "14182360"]
[WhiteElo "2281"]
[BlackElo "2330"]
[Result "1-0"]
[Round "01"]
[TimeControl "180+2"]
[Date "2023.02.07"]
[WhiteClock "0:00:14"]
[BlackClock "0:00:07"]

1. e4 {[%clk 0:03:00]}  e5 {[%clk 0:02:56]} 2. Nf3 {[%clk 0:03:00]}  Nc6 {[%clk 0:02:57]} 3. Bb5 {[%clk 0:03:00]}  Nf6 {[%clk 0:02:57]} 4. O-O {[%clk 0:02:59]}  Nxe4 {[%clk 0:02:57]} 5. Re1 {[%clk 0:02:58]}  Nd6 {[%clk 0:02:57]} 6. Nxe5 {[%clk 0:02:58]}  Nxe5 {[%clk 0:02:57]} 7. Rxe5+ {[%clk 0:02:58]}  Be7 {[%clk 0:02:58]} 8. Bf1 {[%clk 0:02:58]}  O-O {[%clk 0:02:58]} 9. d4 {[%clk 0:02:58]}  Bf6 {[%clk 0:02:59]} 10. Bd3 {[%clk 0:02:58]}  Nf5 {[%clk 0:03:00]} 11. Rxf5 {[%clk 0:02:55]}  d5 {[%clk 0:02:50]} 12. Rf4 {[%clk 0:02:51]}  Bg5 {[%clk 0:02:42]} 13. Rf3 {[%clk 0:02:42]}  Bg4 {[%clk 0:02:40]} 14. Bxg5 {[%clk 0:02:26]}  Bxf3 {[%clk 0:02:39]} 15. Bxd8 {[%clk 0:02:02]}  Bxd1 {[%clk 0:02:38]} 16. Bxc7 {[%clk 0:01:56]}  Rfc8 {[%clk 0:02:37]} 17. Nc3 {[%clk 0:01:55]}  Bxc2 {[%clk 0:02:34]} 18. Bxc2 {[%clk 0:01:55]}  Rxc7 {[%clk 0:02:34]} 19. Re1 {[%clk 0:01:55]}  Rc4 {[%clk 0:02:00]} 20. Bb3 {[%clk 0:01:54]}  Rxd4 {[%clk 0:01:59]} 21. Bxd5 {[%clk 0:01:55]}  Rd2 {[%clk 0:01:37]} 22. Re2 {[%clk 0:01:40]}  Rxe2 {[%clk 0:01:29]} 23. Nxe2 {[%clk 0:01:41]}  Rd8 {[%clk 0:01:29]} 24. Nc3 {[%clk 0:01:41]}  b5 {[%clk 0:01:27]} 25. Bf3 {[%clk 0:01:40]}  b4 {[%clk 0:01:24]} 26. Nd1 {[%clk 0:01:17]}  Kf8 {[%clk 0:01:19]} 27. Kf1 {[%clk 0:01:17]}  a5 {[%clk 0:01:07]} 28. Ke2 {[%clk 0:01:16]}  a4 {[%clk 0:00:59]} 29. Ne3 {[%clk 0:01:16]}  a3 {[%clk 0:00:37]} 30. bxa3 {[%clk 0:01:14]}  bxa3 {[%clk 0:00:38]} 31. Bd5 {[%clk 0:01:13]}  Ke7 {[%clk 0:00:31]} 32. Bb3 {[%clk 0:01:11]}  f6 {[%clk 0:00:29]} 33. Nc4 {[%clk 0:01:06]}  Ke6 {[%clk 0:00:17]} 34. Nxa3+ {[%clk 0:01:04]}  Ke5 {[%clk 0:00:17]} 35. Nc2 {[%clk 0:01:02]}  f5 {[%clk 0:00:16]} 36. Ne3 {[%clk 0:00:56]}  g5 {[%clk 0:00:17]} 37. a4 {[%clk 0:00:54]}  Rb8 {[%clk 0:00:15]} 38. Bc2 {[%clk 0:00:45]}  f4 {[%clk 0:00:11]} 39. Nf5 {[%clk 0:00:39]}  Rb2 {[%clk 0:00:08]} 40. Kd2 {[%clk 0:00:39]}  Ra2 {[%clk 0:00:07]} 41. Ne7 {[%clk 0:00:36]}  h5 {[%clk 0:00:06]} 42. Nc6+ {[%clk 0:00:34]}  Kd6 {[%clk 0:00:04]} 43. Nd4 {[%clk 0:00:30]}  Ra1 {[%clk 0:00:03]} 44. Nf3 {[%clk 0:00:17]}  g4 {[%clk 0:00:04]} 45. Ne1 {[%clk 0:00:18]}  Kc5 {[%clk 0:00:02]} 46. Nd3+ {[%clk 0:00:18]}  Kd4 {[%clk 0:00:02]} 47. Nxf4 {[%clk 0:00:19]}  Rh1 {[%clk 0:00:03]} 48. g3 {[%clk 0:00:18]}  Rxh2 {[%clk 0:00:03]} 49. Ne2+ {[%clk 0:00:18]}  Ke5 {[%clk 0:00:01]} 50. Ke3 {[%clk 0:00:19]}  Rh1 {[%clk 0:00:02]} 51. a5 {[%clk 0:00:18]}  h4 {[%clk 0:00:02]} 52. gxh4 {[%clk 0:00:18]}  Rxh4 {[%clk 0:00:03]} 53. a6 {[%clk 0:00:19]}  Rh3+ {[%clk 0:00:03]} 54. Ng3 {[%clk 0:00:18]}  Rh6 {[%clk 0:00:04]} 55. Bd3 {[%clk 0:00:19]}  Rb6 {[%clk 0:00:04]} 56. Nf1 {[%clk 0:00:19]}  Rb8 {[%clk 0:00:03]} 57. Nd2 {[%clk 0:00:19]}  Re8 {[%clk 0:00:03]} 58. Be4 {[%clk 0:00:19]}  Re7 {[%clk 0:00:03]} 59. Nb3 {[%clk 0:00:18]}  Kd6 {[%clk 0:00:03]} 60. Kd4 {[%clk 0:00:17]}  Rf7 {[%clk 0:00:03]} 61. Bb7 {[%clk 0:00:17]}  Kc7 {[%clk 0:00:02]} 62. Ke3 {[%clk 0:00:15]}  Kb6 {[%clk 0:00:03]} 63. Nd2 {[%clk 0:00:15]}  Re7+ {[%clk 0:00:02]} 64. Kf4 {[%clk 0:00:15]}  Rf7+ {[%clk 0:00:03]} 65. Kg3 {[%clk 0:00:16]}  Rf6 {[%clk 0:00:03]} 66. Ne4 {[%clk 0:00:15]}  Rf7 {[%clk 0:00:02]} 67. Nd6 {[%clk 0:00:15]}  Rf6 {[%clk 0:00:02]} 68. Nc4+ {[%clk 0:00:14]}  Ka7 {[%clk 0:00:02]} 69. Ne3 {[%clk 0:00:15]}  Rf7 {[%clk 0:00:01]} 70. Nxg4 {[%clk 0:00:16]}  Rg7 {[%clk 0:00:02]} 71. f4 {[%clk 0:00:16]}  Rf7 {[%clk 0:00:02]} 72. Ne5 {[%clk 0:00:15]}  Rg7+ {[%clk 0:00:02]} 73. Kf3 {[%clk 0:00:16]}  Re7 {[%clk 0:00:03]} 74. Ke4 {[%clk 0:00:16]}  Re8 {[%clk 0:00:02]} 75. f5 {[%clk 0:00:17]}  Rf8 {[%clk 0:00:03]} 76. Kf4 {[%clk 0:00:16]}  Re8 {[%clk 0:00:02]} 77. f6 {[%clk 0:00:16]}  Rh8 {[%clk 0:00:02]} 78. Kf5 {[%clk 0:00:16]}  Rh2 {[%clk 0:00:02]} 79. Ke6 {[%clk 0:00:17]}  Rh6 {[%clk 0:00:01]} 80. Ke7 {[%clk 0:00:16]}  Rh7+ {[%clk 0:00:02]} 81. f7 {[%clk 0:00:17]}  Kb6 {[%clk 0:00:01]} 82. Ke8 {[%clk 0:00:14]}  Rh8+ {[%clk 0:00:01]} 83. f8=Q {[%clk 0:00:14]}  Rxf8+ {[%clk 0:00:01]} 84. Kxf8 {[%clk 0:00:15]}  Ka7 {[%clk 0:00:02]} 85. Nc6+ {[%clk 0:00:14]}  Kb6 {[%clk 0:00:02]} 86. Ke7 {[%clk 0:00:14]}  Kc7 {[%clk 0:00:03]} 87. Ke6 {[%clk 0:00:14]}  Kb6 {[%clk 0:00:03]} 88. Kd7 {[%clk 0:00:14]}  Kb5 {[%clk 0:00:04]} 89. a7 {[%clk 0:00:14]}  Kb6 {[%clk 0:00:04]} 90. Kc8 {[%clk 0:00:14]}  Kc5 {[%clk 0:00:05]} 91. a8=Q {[%clk 0:00:14]}  Kd6 {[%clk 0:00:05]} 92. Qb8+ {[%clk 0:00:14]}  Ke6 {[%clk 0:00:06]} 93. Qe5+ {[%clk 0:00:14]}  Kf7 {[%clk 0:00:06]} 94. Nd8+ {[%clk 0:00:14]}  Kg8 {[%clk 0:00:06]} 95. Bd5+ {[%clk 0:00:14]}  Kh7 {[%clk 0:00:07]} 96. Qh5+ {[%clk 0:00:14]}  Kg7 {[%clk 0:00:07]} 97. Qg5+ {[%clk 0:00:14]}  Kf8 {[%clk 0:00:07]} 98. Qf6+ {[%clk 0:00:14]}  Ke8 {[%clk 0:00:07]} 99. Bc6# {[%clk 0:00:14]} 1-0


[Site "https://www.chess.com"]

[Event "Titled Tuesday Blitz February 07 Early 2023"]
[White "Milikow, Yoav"]
[Black "Degenbaev, Aziz"]
[WhiteFideId "2822237"]
[BlackFideId "13802640"]
[WhiteElo "2394"]
[BlackElo "2203"]
[Result "0-1"]
[Round "01"]
[TimeControl "180+2"]
[Date "2023.02.07"]
[WhiteClock "0:00:06"]
[BlackClock "0:00:14"]

1. c4 {[%clk 0:02:59]}  Nf6 {[%clk 0:02:58]} 2. g3 {[%clk 0:02:59]}  g6 {[%clk 0:02:57]} 3. Bg2 {[%clk 0:02:59]}  c5 {[%clk 0:02:57]} 4. Nc3 {[%clk 0:02:59]}  Bg7 {[%clk 0:02:58]} 5. d3 {[%clk 0:02:56]}  O-O {[%clk 0:02:57]} 6. e4 {[%clk 0:02:50]}  e5 {[%clk 0:02:57]} 7. Be3 {[%clk 0:02:47]}  d6 {[%clk 0:02:57]} 8. h3 {[%clk 0:02:41]}  Nc6 {[%clk 0:02:57]} 9. Qd2 {[%clk 0:02:36]}  a6 {[%clk 0:02:53]} 10. Nge2 {[%clk 0:02:32]}  Rb8 {[%clk 0:02:53]} 11. g4 {[%clk 0:02:29]}  b5 {[%clk 0:02:50]} 12. b3 {[%clk 0:02:29]}  Nd4 {[%clk 0:02:47]} 13. Ng3 {[%clk 0:02:23]}  bxc4 {[%clk 0:02:46]} 14. dxc4 {[%clk 0:02:20]}  Qa5 {[%clk 0:02:28]} 15. Rc1 {[%clk 0:02:11]}  Be6 {[%clk 0:02:21]} 16. Bh6 {[%clk 0:01:55]}  Rfd8 {[%clk 0:01:59]} 17. Bxg7 {[%clk 0:01:54]}  Kxg7 {[%clk 0:02:00]} 18. g5 {[%clk 0:01:54]}  Ne8 {[%clk 0:01:53]} 19. h4 {[%clk 0:01:52]}  Bg4 {[%clk 0:01:48]} 20. Nd5 {[%clk 0:01:32]}  Qa3 {[%clk 0:01:32]} 21. Kf1 {[%clk 0:01:17]}  Rxb3 {[%clk 0:01:15]} 22. axb3 {[%clk 0:00:39]}  Nxb3 {[%clk 0:01:15]} 23. Qc3 {[%clk 0:00:40]}  Qxc1+ {[%clk 0:01:11]} 24. Qxc1 {[%clk 0:00:40]}  Nxc1 {[%clk 0:01:12]} 25. f3 {[%clk 0:00:41]}  Bd7 {[%clk 0:01:07]} 26. Kf2 {[%clk 0:00:42]}  Nb3 {[%clk 0:01:05]} 27. Rb1 {[%clk 0:00:42]}  Nd4 {[%clk 0:01:03]} 28. Ra1 {[%clk 0:00:42]}  Rb8 {[%clk 0:00:56]} 29. Rxa6 {[%clk 0:00:40]}  Rb2+ {[%clk 0:00:56]} 30. Kg1 {[%clk 0:00:41]}  Be6 {[%clk 0:00:51]} 31. h5 {[%clk 0:00:32]}  gxh5 {[%clk 0:00:47]} 32. Ra8 {[%clk 0:00:26]}  Bxd5 {[%clk 0:00:43]} 33. cxd5 {[%clk 0:00:14]}  Nc7 {[%clk 0:00:42]} 34. Rc8 {[%clk 0:00:13]}  Ncb5 {[%clk 0:00:28]} 35. Nxh5+ {[%clk 0:00:12]}  Kg6 {[%clk 0:00:23]} 36. Nf6 {[%clk 0:00:13]}  Kxg5 {[%clk 0:00:22]} 37. Nxh7+ {[%clk 0:00:13]}  Kf4 {[%clk 0:00:22]} 38. Rf8 {[%clk 0:00:13]}  f5 {[%clk 0:00:19]} 39. exf5 {[%clk 0:00:11]}  Rb1+ {[%clk 0:00:17]} 40. Kh2 {[%clk 0:00:11]}  Rb2 {[%clk 0:00:17]} 41. Kh3 {[%clk 0:00:12]}  Nxf5 {[%clk 0:00:17]} 42. Nf6 {[%clk 0:00:11]}  Nbd4 {[%clk 0:00:15]} 43. Ne8 {[%clk 0:00:09]}  Ke3 {[%clk 0:00:15]} 44. Rf6 {[%clk 0:00:09]}  Rb8 {[%clk 0:00:15]} 45. Nxd6 {[%clk 0:00:03]}  Rh8+ {[%clk 0:00:15]} 46. Kg4 {[%clk 0:00:04]}  Rg8+ {[%clk 0:00:16]} 47. Kh3 {[%clk 0:00:05]}  Nxd6 {[%clk 0:00:15]} 48. Rxd6 {[%clk 0:00:05]}  Rh8+ {[%clk 0:00:12]} 49. Kg4 {[%clk 0:00:06]}  Rg8+ {[%clk 0:00:13]} 50. Kh3 {[%clk 0:00:06]}  Nf5 {[%clk 0:00:13]} 51. Re6 {[%clk 0:00:06]}  Kf4 {[%clk 0:00:13]} 52. Kh2 {[%clk 0:00:07]}  Rh8+ {[%clk 0:00:13]} 53. Bh3 {[%clk 0:00:06]}  Nd4 {[%clk 0:00:12]} 54. Rf6+ {[%clk 0:00:06]}  Ke3 {[%clk 0:00:13]} 55. d6 {[%clk 0:00:05]}  Nxf3+ {[%clk 0:00:13]} 56. Kg3 {[%clk 0:00:06]}  Ng5 {[%clk 0:00:13]} 57. Bg4 {[%clk 0:00:06]}  Ne4+ {[%clk 0:00:14]} 0-1


[Site "https://www.chess.com"]

[Event "Titled Tuesday Blitz February 07 Early 2023"]
[White "Mirzanurov, Bulat"]
[Black "Fier, Alexandr"]
[WhiteFideId "4184521"]
[BlackFideId "2107139"]
[WhiteElo "2232"]
[BlackElo "2589"]
[Result "0-1"]
[Round "01"]
[TimeControl "180+2"]
[Date "2023.02.07"]
[WhiteClock "0:00:03"]
[BlackClock "0:02:21"]

1. e4 {[%clk 0:02:59]}  Nf6 {[%clk 0:02:59]} 2. e5 {[%clk 0:02:58]}  Nd5 {[%clk 0:02:59]} 3. d4 {[%clk 0:02:58]}  d6 {[%clk 0:02:59]} 4. c4 {[%clk 0:02:57]}  Nb6 {[%clk 0:02:59]} 5. f4 {[%clk 0:02:49]}  g6 {[%clk 0:02:58]} 6. Nc3 {[%clk 0:02:48]}  Bg7 {[%clk 0:02:59]} 7. Be3 {[%clk 0:02:47]}  O-O {[%clk 0:02:57]} 8. Nf3 {[%clk 0:02:41]}  Be6 {[%clk 0:02:56]} 9. b3 {[%clk 0:02:36]}  c5 {[%clk 0:02:53]} 10. d5 {[%clk 0:02:26]}  Bg4 {[%clk 0:02:53]} 11. Rc1 {[%clk 0:02:15]}  N8d7 {[%clk 0:02:48]} 12. Be2 {[%clk 0:02:08]}  Bxf3 {[%clk 0:02:48]} 13. Bxf3 {[%clk 0:02:08]}  dxe5 {[%clk 0:02:49]} 14. fxe5 {[%clk 0:02:04]}  Bxe5 {[%clk 0:02:50]} 15. O-O {[%clk 0:02:03]}  Nc8 {[%clk 0:02:50]} 16. Qd2 {[%clk 0:01:48]}  Nd6 {[%clk 0:02:50]} 17. Qf2 {[%clk 0:01:47]}  b6 {[%clk 0:02:50]} 18. h4 {[%clk 0:01:32]}  Bg7 {[%clk 0:02:48]} 19. h5 {[%clk 0:01:24]}  Nf5 {[%clk 0:02:47]} 20. Ne2 {[%clk 0:00:37]}  Ne5 {[%clk 0:02:44]} 21. Bf4 {[%clk 0:00:23]}  Nd3 {[%clk 0:02:44]} 22. g4 {[%clk 0:00:16]}  Nxf2 {[%clk 0:02:43]} 23. Rxf2 {[%clk 0:00:17]}  Nd4 {[%clk 0:02:43]} 24. Bg2 {[%clk 0:00:14]}  Nxe2+ {[%clk 0:02:19]} 25. Rxe2 {[%clk 0:00:15]}  e6 {[%clk 0:02:18]} 26. d6 {[%clk 0:00:13]}  Bd4+ {[%clk 0:02:18]} 27. Kh1 {[%clk 0:00:13]}  Qh4+ {[%clk 0:02:19]} 28. Bh2 {[%clk 0:00:13]}  Qxg4 {[%clk 0:02:19]} 29. Rce1 {[%clk 0:00:10]}  Qxh5 {[%clk 0:02:19]} 30. Bxa8 {[%clk 0:00:08]}  Rxa8 {[%clk 0:02:20]} 31. Rd2 {[%clk 0:00:07]}  Qf3+ {[%clk 0:02:20]} 32. Rg2 {[%clk 0:00:07]}  Rd8 {[%clk 0:02:21]} 33. Re2 {[%clk 0:00:04]}  Qf1+ {[%clk 0:02:20]} 34. Bg1 {[%clk 0:00:04]}  Rxd6 {[%clk 0:02:20]} 35. Kh2 {[%clk 0:00:04]}  Qf4+ {[%clk 0:02:20]} 36. Kh1 {[%clk 0:00:04]}  Bxg1 {[%clk 0:02:21]} 37. Kxg1 {[%clk 0:00:03]}  Rd1+ {[%clk 0:02:21]} 0-1


[Site "https://www.chess.com"]